[Event "Titled Tuesday Blitz August 17 2021"]
[White "Nitin, S."]
[Black "Lintchevski, Daniil"]
[WhiteFideId "5018277"]
[BlackFideId "4171055"]
[WhiteElo "2431"]
[BlackElo "2494"]
[Result "0-1"]
[Round "03"]
[TimeControl "180+1"]
[Date "2021.08.17"]
[WhiteClock "0:00:03"]
[BlackClock "0:00:20"]

1. e4 {[%clk 0:03:00]}  c5 {[%clk 0:02:55]} 2. Nf3 {[%clk 0:03:00]}  Nf6 {[%clk 0:02:55]} 3. e5 {[%clk 0:02:57]}  Nd5 {[%clk 0:02:56]} 4. Nc3 {[%clk 0:02:58]}  e6 {[%clk 0:02:56]} 5. Bc4 {[%clk 0:02:53]}  Nb6 {[%clk 0:02:54]} 6. Be2 {[%clk 0:02:52]}  d6 {[%clk 0:02:49]} 7. O-O {[%clk 0:02:45]}  Nc6 {[%clk 0:02:49]} 8. exd6 {[%clk 0:02:43]}  Bxd6 {[%clk 0:02:50]} 9. Ne4 {[%clk 0:02:41]}  Be7 {[%clk 0:02:50]} 10. d3 {[%clk 0:02:40]}  Nd5 {[%clk 0:02:48]} 11. c4 {[%clk 0:02:39]}  Nf6 {[%clk 0:02:47]} 12. Nc3 {[%clk 0:02:33]}  b6 {[%clk 0:02:34]} 13. Be3 {[%clk 0:02:31]}  O-O {[%clk 0:02:10]} 14. d4 {[%clk 0:02:27]}  Ng4 {[%clk 0:02:10]} 15. d5 {[%clk 0:02:26]}  Nxe3 {[%clk 0:02:10]} 16. fxe3 {[%clk 0:02:26]}  Na5 {[%clk 0:02:09]} 17. e4 {[%clk 0:02:25]}  exd5 {[%clk 0:02:00]} 18. cxd5 {[%clk 0:02:23]}  f6 {[%clk 0:01:51]} 19. a3 {[%clk 0:01:40]}  c4 {[%clk 0:01:42]} 20. Kh1 {[%clk 0:01:27]}  a6 {[%clk 0:01:42]} 21. Nd4 {[%clk 0:01:21]}  b5 {[%clk 0:01:37]} 22. Bg4 {[%clk 0:01:19]}  Bc5 {[%clk 0:01:22]} 23. Be6+ {[%clk 0:01:14]}  Kh8 {[%clk 0:01:19]} 24. Nce2 {[%clk 0:01:09]}  Qd6 {[%clk 0:01:08]} 25. Nf5 {[%clk 0:01:04]}  Qe5 {[%clk 0:01:02]} 26. Nf4 {[%clk 0:01:04]}  g6 {[%clk 0:00:54]} 27. Nh4 {[%clk 0:00:54]}  Qg5 {[%clk 0:00:43]} 28. g3 {[%clk 0:00:48]}  Bd6 {[%clk 0:00:42]} 29. Nf3 {[%clk 0:00:44]}  Qh6 {[%clk 0:00:41]} 30. Nd4 {[%clk 0:00:40]}  Nb3 {[%clk 0:00:36]} 31. Bxc8 {[%clk 0:00:34]}  Raxc8 {[%clk 0:00:29]} 32. Nxb3 {[%clk 0:00:27]}  cxb3 {[%clk 0:00:30]} 33. Ne6 {[%clk 0:00:27]}  Bxg3 {[%clk 0:00:28]} 34. Kg2 {[%clk 0:00:08]}  Qxh2+ {[%clk 0:00:26]} 35. Kf3 {[%clk 0:00:08]}  Rc2 {[%clk 0:00:24]} 36. Rg1 {[%clk 0:00:03]}  Qf2+ {[%clk 0:00:19]} 37. Kg4 {[%clk 0:00:03]}  h5+ {[%clk 0:00:20]} 0-1


[Site "https://www.chess.com"]

[Event "Titled Tuesday Blitz August 17 2021"]
[White "Novikova, Galina"]
[Black "Golubev, Mikhail"]
[WhiteFideId "4157095"]
[BlackFideId "14100983"]
[WhiteElo "1907"]
[BlackElo "2374"]
[Result "1/2-1/2"]
[Round "03"]
[TimeControl "180+1"]
[Date "2021.08.18"]
[WhiteClock "0:00:09"]
[BlackClock "0:00:10"]

1. e4 {[%clk 0:03:00]}  c5 {[%clk 0:02:59]} 2. Nf3 {[%clk 0:03:01]}  d6 {[%clk 0:02:59]} 3. d4 {[%clk 0:03:01]}  Nf6 {[%clk 0:02:58]} 4. Nc3 {[%clk 0:03:00]}  cxd4 {[%clk 0:02:58]} 5. Nxd4 {[%clk 0:03:01]}  g6 {[%clk 0:02:56]} 6. Be2 {[%clk 0:02:56]}  Bg7 {[%clk 0:02:55]} 7. h4 {[%clk 0:02:56]}  h5 {[%clk 0:02:51]} 8. Be3 {[%clk 0:02:49]}  Nc6 {[%clk 0:02:50]} 9. Qd2 {[%clk 0:02:48]}  Ng4 {[%clk 0:02:45]} 10. Bxg4 {[%clk 0:02:44]}  Bxg4 {[%clk 0:02:44]} 11. f3 {[%clk 0:02:45]}  Bd7 {[%clk 0:02:43]} 12. O-O-O {[%clk 0:02:43]}  Rc8 {[%clk 0:02:43]} 13. f4 {[%clk 0:02:33]}  Bg4 {[%clk 0:02:30]} 14. Rdf1 {[%clk 0:02:26]}  Qa5 {[%clk 0:02:15]} 15. Kb1 {[%clk 0:02:22]}  O-O {[%clk 0:02:09]} 16. Nb3 {[%clk 0:02:15]}  Bxc3 {[%clk 0:01:21]} 17. bxc3 {[%clk 0:01:48]}  Qa4 {[%clk 0:01:20]} 18. Qd3 {[%clk 0:01:36]}  f5 {[%clk 0:01:17]} 19. Qd5+ {[%clk 0:01:27]}  Kh7 {[%clk 0:01:16]} 20. e5 {[%clk 0:00:49]}  dxe5 {[%clk 0:01:16]} 21. fxe5 {[%clk 0:00:50]}  Rcd8 {[%clk 0:01:16]} 22. Nc5 {[%clk 0:00:20]}  Rxd5 {[%clk 0:01:16]} 23. Nxa4 {[%clk 0:00:20]}  Nxe5 {[%clk 0:01:10]} 24. Bg5 {[%clk 0:00:17]}  Nc6 {[%clk 0:01:07]} 25. c4 {[%clk 0:00:14]}  Rd4 {[%clk 0:01:05]} 26. Nb2 {[%clk 0:00:13]}  e5 {[%clk 0:01:04]} 27. Re1 {[%clk 0:00:14]}  e4 {[%clk 0:00:58]} 28. Rhf1 {[%clk 0:00:08]}  b6 {[%clk 0:00:49]} 29. c3 {[%clk 0:00:09]}  Rd7 {[%clk 0:00:25]} 30. Rxe4 {[%clk 0:00:09]}  fxe4 {[%clk 0:00:19]} 31. Rxf8 {[%clk 0:00:10]}  Kg7 {[%clk 0:00:19]} 32. Re8 {[%clk 0:00:09]}  Bf5 {[%clk 0:00:18]} 33. Kc1 {[%clk 0:00:08]}  Kf7 {[%clk 0:00:16]} 34. Rc8 {[%clk 0:00:07]}  Ne5 {[%clk 0:00:16]} 35. Rh8 {[%clk 0:00:04]}  Ng4 {[%clk 0:00:11]} 36. Rh7+ {[%clk 0:00:03]}  Ke6 {[%clk 0:00:12]} 37. Rxd7 {[%clk 0:00:03]}  Kxd7 {[%clk 0:00:12]} 38. Nd1 {[%clk 0:00:01]}  Kc6 {[%clk 0:00:12]} 39. Kd2 {[%clk 0:00:02]}  Kc5 {[%clk 0:00:10]} 40. Ne3 {[%clk 0:00:03]}  Nxe3 {[%clk 0:00:10]} 41. Bxe3+ {[%clk 0:00:03]}  Kxc4 {[%clk 0:00:10]} 42. Bg5 {[%clk 0:00:03]}  b5 {[%clk 0:00:09]} 43. a3 {[%clk 0:00:02]}  a5 {[%clk 0:00:09]} 44. Be7 {[%clk 0:00:02]}  a4 {[%clk 0:00:08]} 45. Bf8 {[%clk 0:00:03]}  Kb3 {[%clk 0:00:07]} 46. Bb4 {[%clk 0:00:03]}  Kc4 {[%clk 0:00:07]} 47. Ke3 {[%clk 0:00:04]}  Kb3 {[%clk 0:00:07]} 48. g3 {[%clk 0:00:04]}  Kc4 {[%clk 0:00:07]} 49. Ba5 {[%clk 0:00:04]}  Kd5 {[%clk 0:00:06]} 50. Bb4 {[%clk 0:00:05]}  Be6 {[%clk 0:00:06]} 51. Ba5 {[%clk 0:00:05]}  Bd7 {[%clk 0:00:06]} 52. Bb4 {[%clk 0:00:06]}  Bc8 {[%clk 0:00:07]} 53. Ba5 {[%clk 0:00:06]}  Bg4 {[%clk 0:00:07]} 54. Bb4 {[%clk 0:00:07]}  Bd1 {[%clk 0:00:07]} 55. Ba5 {[%clk 0:00:07]}  Bc2 {[%clk 0:00:07]} 56. Bb4 {[%clk 0:00:07]}  Bd3 {[%clk 0:00:08]} 57. Ba5 {[%clk 0:00:08]}  Ke5 {[%clk 0:00:08]} 58. Bb4 {[%clk 0:00:09]}  Kf5 {[%clk 0:00:08]} 59. Ba5 {[%clk 0:00:09]}  Kg4 {[%clk 0:00:09]} 60. Bc7 {[%clk 0:00:09]}  Bc4 {[%clk 0:00:08]} 61. Bd6 {[%clk 0:00:09]}  Bd3 {[%clk 0:00:08]} 62. Bc7 {[%clk 0:00:10]}  Kf5 {[%clk 0:00:09]} 63. Bd6 {[%clk 0:00:10]}  Ke6 {[%clk 0:00:09]} 64. Bb4 {[%clk 0:00:10]}  Kf5 {[%clk 0:00:10]} 65. Bd6 {[%clk 0:00:09]}  Ke6 {[%clk 0:00:10]} 66. Bb4 {[%clk 0:00:09]}  Kf5 {[%clk 0:00:10]} 1/2-1/2


[Site "https://www.chess.com"]

[Event "Titled Tuesday Blitz August 17 2021"]
[White "Nurmanova, Alua"]
[Black "Franchini, Gabriele"]
[WhiteFideId "13729390"]
[BlackFideId "806790"]
[WhiteElo "1869"]
[BlackElo "2215"]
[Result "1-0"]
[Round "03"]
[TimeControl "180+1"]
[Date "2021.08.18"]
[WhiteClock "0:00:03"]
[BlackClock "0:00:03"]

1. e4 {[%clk 0:03:00]}  e6 {[%clk 0:02:59]} 2. d4 {[%clk 0:03:00]}  d5 {[%clk 0:02:59]} 3. Nc3 {[%clk 0:03:00]}  Bb4 {[%clk 0:02:59]} 4. e5 {[%clk 0:03:00]}  c5 {[%clk 0:02:59]} 5. a3 {[%clk 0:03:01]}  Ba5 {[%clk 0:02:59]} 6. b4 {[%clk 0:03:00]}  cxd4 {[%clk 0:02:58]} 7. Nb5 {[%clk 0:02:59]}  Bc7 {[%clk 0:02:58]} 8. f4 {[%clk 0:02:58]}  Ne7 {[%clk 0:02:57]} 9. Nf3 {[%clk 0:02:53]}  a6 {[%clk 0:02:56]} 10. Nbxd4 {[%clk 0:02:46]}  Nbc6 {[%clk 0:02:55]} 11. Bd3 {[%clk 0:02:43]}  Bb6 {[%clk 0:02:51]} 12. Be3 {[%clk 0:02:39]}  Bd7 {[%clk 0:02:49]} 13. O-O {[%clk 0:02:38]}  Nxd4 {[%clk 0:02:49]} 14. Nxd4 {[%clk 0:02:37]}  Nc6 {[%clk 0:02:49]} 15. Be2 {[%clk 0:02:24]}  Nxd4 {[%clk 0:02:47]} 16. Bxd4 {[%clk 0:02:23]}  Qc7 {[%clk 0:02:42]} 17. c3 {[%clk 0:02:12]}  Bb5 {[%clk 0:02:32]} 18. Bxb5+ {[%clk 0:01:59]}  axb5 {[%clk 0:02:33]} 19. f5 {[%clk 0:02:00]}  exf5 {[%clk 0:02:06]} 20. Rxf5 {[%clk 0:01:51]}  O-O {[%clk 0:02:03]} 21. Kh1 {[%clk 0:01:43]}  Bxd4 {[%clk 0:01:55]} 22. Qxd4 {[%clk 0:01:44]}  Rfc8 {[%clk 0:01:46]} 23. Qxd5 {[%clk 0:01:39]}  Rd8 {[%clk 0:01:40]} 24. Qf3 {[%clk 0:01:36]}  Rac8 {[%clk 0:01:31]} 25. Rf1 {[%clk 0:01:19]}  Rf8 {[%clk 0:01:01]} 26. h3 {[%clk 0:01:07]}  Qxc3 {[%clk 0:00:56]} 27. Qxb7 {[%clk 0:01:06]}  Qc6 {[%clk 0:00:37]} 28. Qe7 {[%clk 0:01:00]}  Qe6 {[%clk 0:00:20]} 29. Qxe6 {[%clk 0:00:38]}  fxe6 {[%clk 0:00:21]} 30. Rxf8+ {[%clk 0:00:39]}  Rxf8 {[%clk 0:00:20]} 31. Rxf8+ {[%clk 0:00:40]}  Kxf8 {[%clk 0:00:21]} 32. Kg1 {[%clk 0:00:40]}  Kf7 {[%clk 0:00:18]} 33. Kf2 {[%clk 0:00:38]}  Kg6 {[%clk 0:00:18]} 34. Ke3 {[%clk 0:00:38]}  Kf5 {[%clk 0:00:18]} 35. Kd4 {[%clk 0:00:37]}  g5 {[%clk 0:00:15]} 36. g3 {[%clk 0:00:32]}  h5 {[%clk 0:00:14]} 37. Kc5 {[%clk 0:00:20]}  Kxe5 {[%clk 0:00:14]} 38. Kxb5 {[%clk 0:00:21]}  Kd4 {[%clk 0:00:12]} 39. a4 {[%clk 0:00:16]}  e5 {[%clk 0:00:12]} 40. a5 {[%clk 0:00:16]}  e4 {[%clk 0:00:13]} 41. a6 {[%clk 0:00:16]}  e3 {[%clk 0:00:14]} 42. a7 {[%clk 0:00:17]}  e2 {[%clk 0:00:15]} 43. a8=Q {[%clk 0:00:17]}  e1=Q {[%clk 0:00:16]} 44. Qd8+ {[%clk 0:00:17]}  Kc3 {[%clk 0:00:13]} 45. Qf6+ {[%clk 0:00:17]}  Kb3 {[%clk 0:00:11]} 46. Qf3+ {[%clk 0:00:17]}  Kc2 {[%clk 0:00:09]} 47. Qf5+ {[%clk 0:00:15]}  Kb3 {[%clk 0:00:08]} 48. Qd5+ {[%clk 0:00:15]}  Kb2 {[%clk 0:00:08]} 49. Qd4+ {[%clk 0:00:14]}  Kb3 {[%clk 0:00:08]} 50. Qc4+ {[%clk 0:00:14]}  Kb2 {[%clk 0:00:08]} 51. Qd4+ {[%clk 0:00:11]}  Kb3 {[%clk 0:00:08]} 52. Qd5+ {[%clk 0:00:09]}  Kb2 {[%clk 0:00:09]} 53. Qxg5 {[%clk 0:00:08]}  Qf1+ {[%clk 0:00:09]} 54. Ka5 {[%clk 0:00:07]}  Qxh3 {[%clk 0:00:10]} 55. Qe5+ {[%clk 0:00:07]}  Kb3 {[%clk 0:00:10]} 56. Qd5+ {[%clk 0:00:06]}  Kb2 {[%clk 0:00:10]} 57. b5 {[%clk 0:00:06]}  Qxg3 {[%clk 0:00:10]} 58. b6 {[%clk 0:00:06]}  Qa3+ {[%clk 0:00:10]} 59. Kb5 {[%clk 0:00:05]}  Qe7 {[%clk 0:00:07]} 60. b7 {[%clk 0:00:04]}  Qe8+ {[%clk 0:00:07]} 61. Ka6 {[%clk 0:00:05]}  h4 {[%clk 0:00:04]} 62. Qb5+ {[%clk 0:00:03]}  Kc1 {[%clk 0:00:03]} 63. Qxe8 {[%clk 0:00:03]} 1-0


[Site "https://www.chess.com"]

[Event "Titled Tuesday Blitz August 17 2021"]
[White "Omariev, Maksim"]
[Black "Bologan, Victor"]
[WhiteFideId "4193423"]
[BlackFideId "13900048"]
[WhiteElo "2422"]
[BlackElo "2511"]
[Result "0-1"]
[Round "03"]
[TimeControl "180+1"]
[Date "2021.08.17"]
[WhiteClock "0:00:02"]
[BlackClock "0:01:02"]

1. g4 {[%clk 0:03:00]}  c6 {[%clk 0:02:56]} 2. Bg2 {[%clk 0:03:01]}  d5 {[%clk 0:02:53]} 3. g5 {[%clk 0:02:59]}  e5 {[%clk 0:02:52]} 4. h4 {[%clk 0:02:58]}  Bd6 {[%clk 0:02:52]} 5. d4 {[%clk 0:02:58]}  e4 {[%clk 0:02:49]} 6. c4 {[%clk 0:02:58]}  f5 {[%clk 0:02:47]} 7. Nc3 {[%clk 0:02:56]}  Ne7 {[%clk 0:02:46]} 8. Qb3 {[%clk 0:02:20]}  dxc4 {[%clk 0:02:33]} 9. Qxc4 {[%clk 0:02:20]}  Nd7 {[%clk 0:02:33]} 10. h5 {[%clk 0:02:03]}  Nb6 {[%clk 0:02:32]} 11. Qb3 {[%clk 0:02:03]}  Ned5 {[%clk 0:02:31]} 12. Nh3 {[%clk 0:02:00]}  Be6 {[%clk 0:02:27]} 13. Nxd5 {[%clk 0:01:57]}  Bxd5 {[%clk 0:02:27]} 14. Qc2 {[%clk 0:01:56]}  Qc7 {[%clk 0:02:26]} 15. Bd2 {[%clk 0:01:45]}  O-O-O {[%clk 0:02:16]} 16. a4 {[%clk 0:01:43]}  Kb8 {[%clk 0:02:08]} 17. e3 {[%clk 0:01:28]}  Rhe8 {[%clk 0:01:37]} 18. Rg1 {[%clk 0:00:48]}  Nc4 {[%clk 0:01:31]} 19. Bc3 {[%clk 0:00:29]}  f4 {[%clk 0:01:30]} 20. b3 {[%clk 0:00:29]}  Na5 {[%clk 0:01:28]} 21. Rb1 {[%clk 0:00:16]}  fxe3 {[%clk 0:01:25]} 22. fxe3 {[%clk 0:00:17]}  c5 {[%clk 0:01:25]} 23. dxc5 {[%clk 0:00:14]}  Qxc5 {[%clk 0:01:22]} 24. Ke2 {[%clk 0:00:06]}  Nxb3 {[%clk 0:01:15]} 25. Rxb3 {[%clk 0:00:05]}  Bc4+ {[%clk 0:01:09]} 26. Kf2 {[%clk 0:00:04]}  Rf8+ {[%clk 0:01:07]} 27. Ke1 {[%clk 0:00:02]}  Qxe3+ {[%clk 0:01:05]} 28. Kd1 {[%clk 0:00:03]}  Bb4+ {[%clk 0:01:02]} 29. Bd2 {[%clk 0:00:02]}  Rxd2+ {[%clk 0:01:02]} 0-1


[Site "https://www.chess.com"]

[Event "Titled Tuesday Blitz August 17 2021"]
[White "Papasimakopoulos, Alexandros"]
[Black "Holt, Conrad"]
[WhiteFideId "4244125"]
[BlackFideId "2034387"]
[WhiteElo "2352"]
[BlackElo "2586"]
[Result "0-1"]
[Round "03"]
[TimeControl "180+1"]
[Date "2021.08.17"]
[WhiteClock "0:00:32"]
[BlackClock "0:00:40"]

1. d4 {[%clk 0:02:56]}  d5 {[%clk 0:02:59]} 2. c4 {[%clk 0:02:55]}  c6 {[%clk 0:02:59]} 3. cxd5 {[%clk 0:02:55]}  cxd5 {[%clk 0:02:59]} 4. Bf4 {[%clk 0:02:56]}  Nc6 {[%clk 0:02:59]} 5. e3 {[%clk 0:02:56]}  Nf6 {[%clk 0:02:59]} 6. Nc3 {[%clk 0:02:56]}  Bf5 {[%clk 0:02:57]} 7. Qb3 {[%clk 0:02:56]}  Na5 {[%clk 0:02:57]} 8. Qa4+ {[%clk 0:02:56]}  Bd7 {[%clk 0:02:57]} 9. Qc2 {[%clk 0:02:57]}  e6 {[%clk 0:02:56]} 10. Nf3 {[%clk 0:02:57]}  Be7 {[%clk 0:02:46]} 11. h3 {[%clk 0:02:57]}  O-O {[%clk 0:02:45]} 12. Bd3 {[%clk 0:02:57]}  Rc8 {[%clk 0:02:40]} 13. O-O {[%clk 0:02:57]}  b5 {[%clk 0:02:35]} 14. a3 {[%clk 0:02:57]}  Nc4 {[%clk 0:02:35]} 15. Ne5 {[%clk 0:02:56]}  Nxe5 {[%clk 0:02:15]} 16. Bxe5 {[%clk 0:02:56]}  g6 {[%clk 0:02:10]} 17. Qe2 {[%clk 0:02:56]}  a6 {[%clk 0:02:08]} 18. a4 {[%clk 0:02:56]}  b4 {[%clk 0:02:07]} 19. Nb1 {[%clk 0:02:56]}  a5 {[%clk 0:02:06]} 20. Nd2 {[%clk 0:02:57]}  Qe8 {[%clk 0:02:01]} 21. Nb3 {[%clk 0:02:43]}  Bxa4 {[%clk 0:01:43]} 22. Nxa5 {[%clk 0:02:43]}  Ne4 {[%clk 0:01:40]} 23. f3 {[%clk 0:02:16]}  Nd6 {[%clk 0:01:37]} 24. b3 {[%clk 0:02:03]}  Bb5 {[%clk 0:01:27]} 25. Bxd6 {[%clk 0:01:42]}  Bxd3 {[%clk 0:01:25]} 26. Qxd3 {[%clk 0:01:43]}  Bxd6 {[%clk 0:01:21]} 27. Rfc1 {[%clk 0:01:33]}  Qd7 {[%clk 0:00:59]} 28. Qa6 {[%clk 0:01:30]}  Rc3 {[%clk 0:00:56]} 29. Qb7 {[%clk 0:01:15]}  Bc7 {[%clk 0:00:49]} 30. Rxc3 {[%clk 0:01:05]}  bxc3 {[%clk 0:00:49]} 31. Rc1 {[%clk 0:01:04]}  Qd6 {[%clk 0:00:42]} 32. b4 {[%clk 0:00:39]}  Qh2+ {[%clk 0:00:41]} 33. Kf2 {[%clk 0:00:39]}  Bg3+ {[%clk 0:00:40]} 34. Ke2 {[%clk 0:00:31]}  Qxg2+ {[%clk 0:00:40]} 35. Kd3 {[%clk 0:00:32]}  Qd2# {[%clk 0:00:40]} 0-1


[Site "https://www.chess.com"]

[Event "Titled Tuesday Blitz August 17 2021"]
[White "Pastar, Slaven"]
[Black "Sychev, Klementy"]
[WhiteFideId "14402718"]
[BlackFideId "4114060"]
[WhiteElo "2554"]
[BlackElo "2799"]
[Result "0-1"]
[Round "03"]
[TimeControl "180+1"]
[Date "2021.08.17"]
[WhiteClock "0:00:02"]
[BlackClock "0:00:28"]

1. d4 {[%clk 0:03:00]}  d5 {[%clk 0:02:57]} 2. c4 {[%clk 0:03:00]}  c6 {[%clk 0:02:57]} 3. cxd5 {[%clk 0:03:00]}  cxd5 {[%clk 0:02:56]} 4. Nf3 {[%clk 0:03:00]}  Nc6 {[%clk 0:02:54]} 5. Nc3 {[%clk 0:03:00]}  Nf6 {[%clk 0:02:54]} 6. Bf4 {[%clk 0:02:58]}  Nh5 {[%clk 0:02:52]} 7. Bd2 {[%clk 0:02:53]}  g6 {[%clk 0:02:51]} 8. Qb3 {[%clk 0:02:40]}  e6 {[%clk 0:02:46]} 9. Bg5 {[%clk 0:02:34]}  Qa5 {[%clk 0:02:33]} 10. g4 {[%clk 0:02:20]}  h6 {[%clk 0:01:29]} 11. gxh5 {[%clk 0:02:00]}  hxg5 {[%clk 0:01:28]} 12. hxg6 {[%clk 0:02:00]}  g4 {[%clk 0:01:28]} 13. gxf7+ {[%clk 0:02:00]}  Kxf7 {[%clk 0:01:25]} 14. Ne5+ {[%clk 0:01:45]}  Nxe5 {[%clk 0:01:22]} 15. dxe5 {[%clk 0:01:46]}  d4 {[%clk 0:01:20]} 16. Qc4 {[%clk 0:01:07]}  dxc3 {[%clk 0:01:18]} 17. bxc3 {[%clk 0:01:04]}  Qxe5 {[%clk 0:01:17]} 18. Bg2 {[%clk 0:00:54]}  Bd7 {[%clk 0:01:16]} 19. Rc1 {[%clk 0:00:46]}  Ba3 {[%clk 0:00:59]} 20. Rd1 {[%clk 0:00:41]}  Bb5 {[%clk 0:00:56]} 21. Qxg4 {[%clk 0:00:39]}  Qxc3+ {[%clk 0:00:40]} 22. Kf1 {[%clk 0:00:39]}  Rad8 {[%clk 0:00:38]} 23. Qf4+ {[%clk 0:00:19]}  Qf6 {[%clk 0:00:35]} 24. Qc7+ {[%clk 0:00:12]}  Be7 {[%clk 0:00:34]} 25. Re1 {[%clk 0:00:07]}  Rd2 {[%clk 0:00:32]} 26. Bf3 {[%clk 0:00:07]}  Qxf3 {[%clk 0:00:30]} 27. Qxb7 {[%clk 0:00:02]}  Qxb7 {[%clk 0:00:28]} 0-1


[Site "https://www.chess.com"]

[Event "Titled Tuesday Blitz August 17 2021"]
[White "Pert, Richard G"]
[Black "Kuzubov, Yuriy"]
[WhiteFideId "404748"]
[BlackFideId "14112906"]
[WhiteElo "2441"]
[BlackElo "2564"]
[Result "0-1"]
[Round "03"]
[TimeControl "180+1"]
[Date "2021.08.17"]
[WhiteClock "0:00:07"]
[BlackClock "0:00:04"]

1. d4 {[%clk 0:03:00]}  Nf6 {[%clk 0:02:58]} 2. c4 {[%clk 0:03:00]}  e6 {[%clk 0:02:59]} 3. Nf3 {[%clk 0:03:00]}  d5 {[%clk 0:02:59]} 4. Nc3 {[%clk 0:02:58]}  Nbd7 {[%clk 0:02:59]} 5. Bg5 {[%clk 0:02:54]}  h6 {[%clk 0:02:59]} 6. Bh4 {[%clk 0:02:53]}  Be7 {[%clk 0:02:59]} 7. cxd5 {[%clk 0:02:51]}  exd5 {[%clk 0:02:58]} 8. e3 {[%clk 0:02:50]}  c6 {[%clk 0:02:59]} 9. Bd3 {[%clk 0:02:50]}  O-O {[%clk 0:02:59]} 10. O-O {[%clk 0:02:49]}  Re8 {[%clk 0:02:59]} 11. Qc2 {[%clk 0:02:47]}  Ne4 {[%clk 0:02:55]} 12. Bxe7 {[%clk 0:02:43]}  Qxe7 {[%clk 0:02:56]} 13. h3 {[%clk 0:02:33]}  g6 {[%clk 0:02:41]} 14. Rab1 {[%clk 0:02:06]}  a5 {[%clk 0:02:37]} 15. a3 {[%clk 0:02:06]}  Kg7 {[%clk 0:02:35]} 16. b4 {[%clk 0:01:55]}  axb4 {[%clk 0:02:35]} 17. axb4 {[%clk 0:01:56]}  Ng5 {[%clk 0:02:35]} 18. Nxg5 {[%clk 0:01:21]}  hxg5 {[%clk 0:02:36]} 19. b5 {[%clk 0:01:18]}  Nf6 {[%clk 0:02:36]} 20. bxc6 {[%clk 0:01:17]}  bxc6 {[%clk 0:02:37]} 21. Ne2 {[%clk 0:01:14]}  Qd6 {[%clk 0:02:25]} 22. Rb6 {[%clk 0:01:11]}  Bd7 {[%clk 0:02:25]} 23. Rc1 {[%clk 0:01:04]}  Ra3 {[%clk 0:02:15]} 24. Bb5 {[%clk 0:00:56]}  Rc8 {[%clk 0:01:41]} 25. Bxc6 {[%clk 0:00:43]}  Ne4 {[%clk 0:00:31]} 26. Qb2 {[%clk 0:00:35]}  Bxc6 {[%clk 0:00:22]} 27. Rbxc6 {[%clk 0:00:32]}  Rxc6 {[%clk 0:00:19]} 28. Rxc6 {[%clk 0:00:33]}  Qxc6 {[%clk 0:00:19]} 29. Qxa3 {[%clk 0:00:33]}  Qc2 {[%clk 0:00:19]} 30. Qa6 {[%clk 0:00:26]}  Qd1+ {[%clk 0:00:17]} 31. Kh2 {[%clk 0:00:27]}  Nxf2 {[%clk 0:00:17]} 32. Ng3 {[%clk 0:00:22]}  Qe1 {[%clk 0:00:17]} 33. Qd6 {[%clk 0:00:15]}  Qxe3 {[%clk 0:00:17]} 34. Qxd5 {[%clk 0:00:15]}  Nd3 {[%clk 0:00:16]} 35. Nf1 {[%clk 0:00:11]}  Qf4+ {[%clk 0:00:15]} 36. Ng3 {[%clk 0:00:12]}  Kh6 {[%clk 0:00:08]} 37. Qe4 {[%clk 0:00:12]}  Nf2 {[%clk 0:00:06]} 38. Qxf4 {[%clk 0:00:10]}  gxf4 {[%clk 0:00:07]} 39. Ne2 {[%clk 0:00:10]}  Kg5 {[%clk 0:00:08]} 40. g3 {[%clk 0:00:09]}  f3 {[%clk 0:00:07]} 41. Ng1 {[%clk 0:00:10]}  Ng4+ {[%clk 0:00:04]} 42. hxg4 {[%clk 0:00:09]}  Kxg4 {[%clk 0:00:04]} 43. d5 {[%clk 0:00:08]}  f2 {[%clk 0:00:04]} 44. Kg2 {[%clk 0:00:09]}  fxg1=Q+ {[%clk 0:00:04]} 45. Kxg1 {[%clk 0:00:09]}  Kf5 {[%clk 0:00:05]} 46. Kf2 {[%clk 0:00:08]}  Ke5 {[%clk 0:00:06]} 47. Kf3 {[%clk 0:00:09]}  Kxd5 {[%clk 0:00:06]} 48. Kf4 {[%clk 0:00:09]}  f6 {[%clk 0:00:06]} 49. Kf3 {[%clk 0:00:05]}  Ke5 {[%clk 0:00:07]} 50. Ke3 {[%clk 0:00:05]}  Kf5 {[%clk 0:00:06]} 51. Kf3 {[%clk 0:00:06]}  Kg5 {[%clk 0:00:06]} 52. Kf2 {[%clk 0:00:06]}  Kg4 {[%clk 0:00:07]} 53. Kg2 {[%clk 0:00:06]}  f5 {[%clk 0:00:03]} 54. Kf2 {[%clk 0:00:06]}  Kh3 {[%clk 0:00:04]} 55. Kf3 {[%clk 0:00:07]}  g5 {[%clk 0:00:04]} 56. Kf2 {[%clk 0:00:07]}  g4 {[%clk 0:00:04]} 0-1


[Site "https://www.chess.com"]

[Event "Titled Tuesday Blitz August 17 2021"]
[White "Pichot, Alan"]
[Black "Silich, Yahor"]
[WhiteFideId "110973"]
[BlackFideId "13513656"]
[WhiteElo "2622"]
[BlackElo "2142"]
[Result "1-0"]
[Round "03"]
[TimeControl "180+1"]
[Date "2021.08.17"]
[WhiteClock "0:00:54"]
[BlackClock "0:00:03"]

1. e4 {[%clk 0:03:00]}  c5 {[%clk 0:03:00]} 2. Nf3 {[%clk 0:03:00]}  Nc6 {[%clk 0:03:00]} 3. d4 {[%clk 0:03:00]}  cxd4 {[%clk 0:03:01]} 4. Nxd4 {[%clk 0:03:01]}  g6 {[%clk 0:03:02]} 5. c4 {[%clk 0:02:59]}  Bg7 {[%clk 0:03:02]} 6. Be3 {[%clk 0:03:00]}  Nf6 {[%clk 0:03:02]} 7. Nc3 {[%clk 0:03:00]}  O-O {[%clk 0:03:02]} 8. Be2 {[%clk 0:03:00]}  d6 {[%clk 0:03:02]} 9. O-O {[%clk 0:03:00]}  Bd7 {[%clk 0:03:01]} 10. h3 {[%clk 0:03:01]}  a6 {[%clk 0:03:00]} 11. Re1 {[%clk 0:02:55]}  Qb8 {[%clk 0:02:59]} 12. Nd5 {[%clk 0:02:47]}  Nxd5 {[%clk 0:02:13]} 13. exd5 {[%clk 0:02:44]}  Nxd4 {[%clk 0:02:05]} 14. Bxd4 {[%clk 0:02:44]}  b5 {[%clk 0:02:02]} 15. Bf1 {[%clk 0:02:29]}  Re8 {[%clk 0:01:56]} 16. Bxg7 {[%clk 0:02:19]}  Kxg7 {[%clk 0:01:57]} 17. Qd4+ {[%clk 0:02:19]}  Kg8 {[%clk 0:01:54]} 18. Re3 {[%clk 0:02:19]}  e5 {[%clk 0:01:40]} 19. dxe6 {[%clk 0:02:17]}  Bxe6 {[%clk 0:01:41]} 20. cxb5 {[%clk 0:02:14]}  axb5 {[%clk 0:01:41]} 21. a3 {[%clk 0:02:03]}  Rc8 {[%clk 0:01:28]} 22. Rd1 {[%clk 0:01:59]}  Rc2 {[%clk 0:01:21]} 23. h4 {[%clk 0:01:51]}  Qa7 {[%clk 0:01:01]} 24. Qxd6 {[%clk 0:01:39]}  Rxb2 {[%clk 0:01:01]} 25. h5 {[%clk 0:01:30]}  gxh5 {[%clk 0:00:30]} 26. Rd5 {[%clk 0:01:02]}  h6 {[%clk 0:00:15]} 27. Rxh5 {[%clk 0:01:00]}  Kh7 {[%clk 0:00:03]} 28. Qf4 {[%clk 0:00:54]} 1-0


[Site "https://www.chess.com"]